bitfinex/quotes_ETHUSD_20250331
["timestamp","ask_amount","ask_price","bid_price","bid_amount"]
[1743380016391,0.7606,1813.5,1813.0,5.51559]
[1743380016585,6.27482,1813.5,1813.1,6.4702]
[1743380016902,6.68290566,1813.5,1813.2,5.684]
[1743380017067,7.90260823,1813.5,1813.2,5.684]
[1743380017477,7.90260823,1813.5,1813.1,0.7842]
[1743380017798,7.90260823,1813.5,1813.2,5.681]
[1743380018792,13.41704823,1813.5,1813.2,5.681]
[1743380019003,7.90260823,1813.5,1813.2,5.681]
[1743380020129,5.51452,1813.4,1813.2,5.681]
[1743380020283,7.90260823,1813.5,1813.2,5.681]
[1743380020484,0.79026082,1813.4,1813.2,5.681]
[1743380020684,7.90260823,1813.5,1813.2,5.681]
[1743380020897,7.90277823,1813.5,1812.9,0.7842]
[1743380021274,5.51462,1813.4,1813.0,5.662]
[1743380021470,5.51565,1813.1,1812.7,0.7842]
[1743380021676,6.27625,1813.1,1812.7,5.662]
[1743380021983,6.27605,1813.1,1812.7,5.662]
[1743380022186,12.970817,1813.1,1812.7,5.662]
[1743380022386,7.455167,1813.1,1812.7,5.662]
[1743380022616,12.970817,1813.1,1812.7,5.662]
[1743380022801,7.455167,1813.1,1812.7,5.662]
[1743380023806,1.939717,1813.1,1812.7,5.662]
[1743380023969,0.7606,1813.1,1812.7,11.17856]
[1743380024169,0.7606,1813.1,1812.7,11.17861]
[1743380024890,0.7606,1813.1,1812.7,11.1785]
[1743380025062,20.87953,1813.4,1812.7,11.17849]
[1743380025268,3.0,1813.1,1812.7,11.17841]
[1743380025791,3.0,1813.0,1812.7,5.662]
[1743380026111,3.0,1813.0,1812.3,5.51755]
[1743380026112,3.0,1812.7,1812.4,5.648]
[1743380026518,8.51666,1812.7,1812.3,6.4713]
[1743380026889,3.0,1812.5,1812.3,6.4713]
[1743380027091,3.0,1812.6,1812.3,6.4713]
[1743380028394,3.0,1812.7,1812.3,6.4613]
[1743380028598,3.0,1812.7,1812.3,6.4603]
[1743380028807,14.03219,1812.9,1812.3,11.97786]
[1743380029000,3.0,1812.7,1812.3,11.97786]
[1743380029816,8.51667,1812.7,1812.3,0.8243]
[1743380030517,3.0,1812.9,1812.4,11.14943]
[1743380030724,6.46471958,1813.0,1812.7,5.51633]
[1743380030884,0.41471958,1813.0,1812.7,5.51633]
[1743380031087,14.83069,1813.2,1812.6,5.51692]
[1743380031311,1.483069,1813.1,1812.6,5.51692]
[1743380031509,1.483069,1813.1,1812.6,11.03365]
[1743380031704,3.0,1813.1,1812.7,5.51657]
[1743380031931,8.51542,1813.1,1812.6,5.51673]
[1743380032793,3.0,1813.1,1812.6,5.51673]
[1743380033131,3.0,1813.1,1812.7,5.51649]
[1743380033428,3.0,1813.1,1812.7,5.51648]
[1743380033919,9.998507,1813.1,1812.6,5.51673]
[1743380034120,5.5158,1813.0,1812.5,6.34153]
[1743380034430,5.5158,1813.0,1812.5,11.85857]
[1743380034720,5.5158,1813.0,1812.5,6.34134]
[1743380035321,5.5158,1813.0,1812.5,11.85845]
[1743380035523,6.87810072,1813.0,1812.5,11.85845]
[1743380035923,1.36230072,1813.0,1812.6,5.51688]
[1743380036113,1.36230072,1813.0,1812.6,11.03362]
[1743380036312,0.42165309,1813.0,1812.6,5.51674]
[1743380036510,8.51544,1813.1,1812.6,5.51674]
[1743380037639,14.03107,1813.1,1812.6,5.51674]
[1743380037824,8.51544,1813.1,1812.5,11.85856]
[1743380038128,8.51544,1813.1,1812.6,11.03362]
[1743380038309,9.998496,1813.1,1812.6,11.03362]
[1743380038514,9.998496,1813.1,1812.6,5.51673]
[1743380039126,9.998496,1813.1,1812.6,11.03354]
[1743380039313,3.0,1813.1,1812.7,5.51652]
[1743380039510,3.0,1813.1,1812.8,5.632]
[1743380039693,11.83048,1813.2,1812.8,5.632]
[1743380039694,0.8,1813.2,1812.8,5.632]
[1743380040094,3.7501,1813.4,1812.8,11.14807]
[1743380040295,14.77945,1813.4,1812.9,6.30879]
[1743380040505,1.477945,1813.3,1812.9,0.7928]
[1743380040823,1.477945,1813.3,1812.9,6.30881]
[1743380040996,9.26472,1813.4,1812.9,0.7928]
[1743380041195,3.0,1813.2,1812.9,0.7928]
[1743380042023,3.0,1813.3,1812.9,0.7928]
[1743380042223,8.51482,1813.3,1812.9,0.7928]
[1743380042725,8.51483,1813.3,1812.9,0.7928]
[1743380042891,9.992781,1813.3,1812.9,0.7928]
[1743380043327,4.477951,1813.3,1812.9,0.7928]
[1743380043625,0.7501,1813.6,1813.1,11.03055]
[1743380043828,6.264,1813.6,1813.2,5.632]
[1743380044001,3.0,1813.5,1813.2,5.632]
[1743380045194,5.51381,1813.7,1813.2,5.632]
[1743380045195,3.0,1813.7,1813.3,0.7928]
[1743380045351,4.06721001,1813.7,1813.3,0.7928]
[1743380046756,1.40860006,1814.1,1813.6,5.51359]
[1743380046923,1.40860006,1814.1,1813.7,6.4238]
[1743380047107,4.40860006,1814.1,1813.7,6.4238]
[1743380047447,1.40860006,1814.1,1813.7,6.4238]
[1743380047809,5.51209,1814.2,1813.7,6.4238]
[1743380048025,4.25220344,1814.2,1813.7,11.93736]
[1743380048440,10.18635295,1814.2,1813.7,6.4238]
[1743380048643,1.67424295,1814.2,1813.7,11.93712]
[1743380048852,0.42203951,1814.2,1813.7,11.93712]
[1743380049073,3.0,1814.0,1813.5,0.7928]
[1743380049227,3.0,1813.8,1813.6,5.631]
[1743380050390,0.103867,1813.7,1813.6,5.631]
[1743380050725,0.103867,1813.7,1813.6,11.14489]
[1743380050931,0.41262954,1814.2,1813.6,12.338659]
[1743380051133,0.7501,1814.3,1813.7,5.51354]
[1743380051345,3.0,1814.2,1813.7,5.51354]
[1743380051581,3.0,1814.2,1813.8,6.30599]
[1743380051760,0.4235733,1814.3,1813.8,6.30597]
[1743380052079,3.0,1814.4,1813.9,11.656107]
[1743380052378,6.31296,1814.6,1814.0,11.14254]
[1743380052535,3.0,1814.5,1814.0,11.14254]
[1743380053364,8.93574237,1814.5,1814.0,5.63]
[1743380053752,3.0,1814.3,1814.0,5.63]
[1743380053963,8.51193,1814.3,1814.0,5.63]
[1743380054171,8.51193,1814.3,1813.8,0.7928]
[1743380054172,9.914275,1814.3,1813.8,0.7928]
[1743380054485,6.31429,1814.2,1813.9,5.629]
[1743380055273,8.5128,1814.0,1813.6,0.7892]
[1743380055430,3.0,1814.0,1813.7,5.629]
[1743380055775,8.51254,1814.1,1813.7,5.629]
[1743380056067,9.364074,1814.0,1813.7,5.629]
[1743380056474,3.851254,1814.0,1813.7,5.629]
[1743380057658,3.0,1814.1,1813.7,5.629]
[1743380058558,8.5124,1814.1,1813.7,5.629]
[1743380058760,3.0,1814.1,1813.7,5.629]
[1743380058947,3.0,1814.1,1813.7,11.14258]
[1743380059448,3.0,1814.1,1813.7,5.629]
[1743380060060,9.443787,1814.1,1813.7,5.628]
[1743380060261,5.51275,1814.0,1813.7,5.628]
[1743380060462,0.931417,1814.1,1813.6,0.7892]
[1743380060696,0.931417,1814.1,1813.1,0.7892]
[1743380060697,3.0,1813.7,1813.1,0.7892]
[1743380060902,3.0,1813.4,1812.8,1.91881509]
[1743380061192,8.51525,1813.2,1812.8,6.4172]
[1743380061763,3.0,1813.2,1812.8,6.4172]
[1743380062196,8.51511,1813.2,1812.8,6.4172]
[1743380062349,5.51553,1813.1,1812.8,6.4172]
[1743380062550,9.918114,1813.2,1812.8,6.4172]
[1743380062551,4.403004,1813.2,1812.8,6.4172]
[1743380062869,14.03051,1813.2,1812.8,6.4172]
[1743380063082,8.51513,1813.2,1812.8,6.4172]
[1743380063461,5.51556,1813.1,1812.8,6.4172]
[1743380063797,8.92253239,1813.2,1812.8,6.4172]
[1743380063798,0.40740239,1813.2,1812.8,6.4172]
[1743380063993,3.0,1813.1,1812.8,6.4172]
[1743380064997,8.51548,1813.1,1812.8,6.4172]
[1743380065222,3.0,1812.9,1812.6,0.7892]
[1743380065398,5.51574,1813.0,1812.7,5.629]
[1743380065399,3.0,1813.0,1812.7,5.629]
[1743380065705,3.40977555,1813.2,1812.7,11.14544]
[1743380066066,5.51542,1813.1,1812.7,5.629]
[1743380067395,8.51514,1813.2,1812.7,5.629]
[1743380067596,9.446864,1813.2,1812.7,5.629]
[1743380068260,14.962214,1813.2,1812.7,5.629]
[1743380068460,3.931724,1813.2,1812.7,5.629]
[1743380068711,3.931724,1813.2,1812.7,11.14547]
[1743380068889,9.446914,1813.2,1812.7,5.629]
[1743380069056,5.51553,1813.1,1812.7,5.629]
[1743380069804,3.0,1812.9,1812.7,5.63]
[1743380070003,4.4962444,1813.1,1812.7,5.63]
[1743380070500,10.0116744,1813.1,1812.7,5.63]
[1743380070807,3.0,1813.1,1812.7,5.63]
[1743380071108,5.51564,1813.1,1812.7,5.63]
[1743380071479,6.34605,1813.6,1812.9,5.51602]
[1743380071679,5.93441272,1813.6,1813.0,5.51557]
[1743380071910,0.8319,1813.8,1813.2,5.51488]
[1743380071911,6.34519,1813.8,1813.2,5.51488]
[1743380072229,0.634519,1813.7,1813.1,11.94677]
[1743380072524,3.0,1813.5,1813.1,6.4314]
[1743380072688,3.0,1813.6,1813.1,11.94679]
[1743380073231,8.51397,1813.6,1813.1,6.4314]
[1743380073883,8.51397,1813.6,1813.1,11.9468]
[1743380074083,8.51397,1813.6,1813.1,13.693029]
[1743380074325,3.0,1813.6,1813.1,13.693029]
[1743380074484,3.0,1813.6,1813.1,19.208209]
[1743380074884,3.0,1813.6,1813.1,13.692809]
[1743380075438,6.56733506,1813.7,1813.1,8.177629]
[1743380075727,0.65673351,1813.6,1813.1,6.4314]
[1743380075927,3.0,1813.4,1813.1,6.4314]
[1743380076437,8.51396,1813.6,1813.1,6.4314]
[1743380076929,3.0,1813.4,1813.1,6.4314]
[1743380077925,3.0,1813.4,1813.1,11.94681]
[1743380078685,3.0,1813.4,1813.1,6.4314]
[1743380079484,3.0,1813.4,1813.1,11.9468]
[1743380079701,3.0,1813.4,1813.1,13.693029]
[1743380079987,3.0,1813.6,1813.1,13.692829]
[1743380080728,8.51402,1813.6,1813.1,13.692829]
[1743380082011,3.0,1813.6,1813.1,19.208029]
[1743380082411,3.0,1813.6,1813.1,13.692829]
[1743380082931,3.0,1813.6,1813.2,5.51509]
[1743380083482,3.0,1813.6,1813.2,5.51508]
[1743380083688,3.0,1813.6,1813.2,7.4358709]
[1743380085135,6.31776,1814.0,1813.4,0.8221]
[1743380085289,3.0,1814.0,1813.5,11.14203]
[1743380085485,0.41316808,1814.2,1813.6,6.3359]
[1743380085791,5.51291,1814.0,1813.6,0.8221]
[1743380086025,5.51329,1813.8,1813.5,5.628]
[1743380087217,3.0,1813.8,1813.5,5.628]
[1743380087518,9.31724,1814.1,1813.5,11.14208]
[1743380087735,5.51279,1814.0,1813.6,0.8221]
[1743380087902,6.995793,1814.0,1813.6,0.8221]
[1743380088102,1.483003,1814.0,1813.6,0.8221]
[1743380088319,3.0,1813.8,1813.6,0.8221]
[1743380092010,8.51329,1813.8,1813.6,0.8221]
[1743380092205,3.0,1813.6,1813.4,0.8221]
[1743380092403,3.0,1813.6,1813.3,5.627]
[1743380092404,8.514,1813.6,1813.3,5.627]
[1743380092601,14.02813,1813.6,1813.3,5.627]
[1743380092819,15.55243467,1813.6,1813.3,5.627]
[1743380093022,5.51524,1813.2,1812.8,0.8221]
[1743380093222,5.51524,1813.2,1812.9,5.627]
[1743380094850,3.0,1813.0,1812.9,5.627]
[1743380095056,8.51589,1813.0,1812.7,31.842]
[1743380095346,5.51607,1812.9,1812.7,31.842]
[1743380095734,14.03187,1813.0,1812.7,31.842]
[1743380095936,8.51589,1813.0,1812.7,31.842]
[1743380096320,3.0,1813.0,1812.7,31.842]
[1743380096528,3.0,1813.0,1812.6,6.4491]
[1743380096937,8.51602,1812.9,1812.6,6.4491]
[1743380097437,3.0,1812.9,1812.6,6.4491]
[1743380099347,9.32025,1813.1,1812.6,6.4491]
[1743380099557,9.32025,1813.1,1812.6,22.14573]
[1743380099762,14.83591,1813.1,1812.6,22.14573]
[1743380100121,3.0,1812.9,1812.6,22.14573]
[1743380100326,5.51571,1813.0,1812.6,15.3221]
[1743380100532,8.51677,1812.7,1812.3,0.7845]
[1743380100730,1.22179829,1813.1,1812.4,5.628]
[1743380100731,3.0,1812.9,1812.4,5.628]
[1743380101057,8.51584,1813.0,1812.6,0.7845]
[1743380101246,1.52531083,1813.0,1812.6,6.30141]
[1743380101446,5.51451,1813.4,1812.6,0.55]
[1743380101447,5.5148,1813.4,1812.6,0.55]
[1743380101664,3.0,1813.3,1813.0,0.7845]
[1743380101973,8.51482,1813.3,1813.1,5.628]
[1743380102836,8.51482,1813.3,1813.0,0.7845]
[1743380102837,3.0,1813.1,1812.5,5.51722]
[1743380103059,5.51526,1813.2,1812.5,0.7845]
[1743380103060,3.0,1812.7,1812.5,0.7845]
[1743380103264,3.0,1812.5,1812.3,0.7845]
[1743380104377,5.51739,1812.5,1812.3,0.7845]
[1743380104674,5.51739,1812.5,1812.2,5.628]
[1743380104970,8.51694,1812.6,1812.2,5.628]
[1743380105150,5.51747,1812.5,1812.2,5.628]
[1743380105777,8.51694,1812.6,1812.2,5.628]
[1743380105945,14.03414,1812.6,1812.2,5.628]
[1743380106146,3.0,1812.6,1812.2,5.628]
[1743380106550,3.0,1812.6,1812.2,6.752631]
[1743380106783,1.18407459,1812.7,1812.2,6.752631]
[1743380106986,3.0,1812.8,1812.3,0.7926]
[1743380107154,5.51578,1813.0,1812.5,0.7926]
[1743380107476,3.0,1812.9,1812.5,0.7926]
[1743380107647,8.51604,1812.9,1812.6,5.628]
[1743380108977,3.0,1812.9,1812.6,5.628]
[1743380109153,11.02989,1813.3,1812.7,0.7926]
[1743380109355,3.0,1813.0,1812.7,0.7926]
[1743380109554,3.0,1813.0,1812.7,15.93466]
[1743380109980,3.0,1813.0,1812.7,1.43466]
[1743380110178,0.40970708,1813.5,1813.0,5.51561]
[1743380110388,0.778,1813.7,1813.0,5.51561]
[1743380110389,6.74856232,1813.6,1813.1,5.51538]
[1743380110553,6.74856232,1813.6,1813.2,5.51496]
[1743380110554,1.23467232,1813.6,1813.2,5.51496]
[1743380110755,5.51405,1813.6,1813.1,0.7926]
[1743380110991,3.0,1813.6,1813.1,0.7926]
[1743380111180,3.0,1813.6,1813.1,6.30786]
[1743380111357,6.71084325,1813.7,1813.1,6.30786]
[1743380111555,5.51389,1813.6,1813.1,0.7926]
[1743380111755,3.0,1813.5,1813.1,0.7926]
[1743380111989,3.0,1813.5,1813.1,6.30788]
[1743380112287,3.0,1813.5,1813.1,8.053039]
[1743380112796,3.8372,1813.5,1813.1,8.053039]
[1743380113383,5.51466,1813.4,1813.1,2.537759]
[1743380113554,3.0,1813.3,1813.1,0.7926]
[1743380114582,3.8372,1813.5,1813.1,0.7926]
[1743380116377,9.35141,1813.5,1813.1,0.7926]
[1743380117888,3.8372,1813.5,1813.1,0.7926]
[1743380118088,0.8372,1813.5,1813.4,6.2951]
[1743380118290,0.8372,1813.5,1813.4,13.10308]
[1743380118453,0.8372,1813.5,1813.4,13.65308]
[1743380118658,0.8372,1813.5,1813.4,28.15308]
[1743380122892,0.827,1814.6,1814.1,5.51215]
[1743380123067,0.927,1814.9,1814.2,0.7806]
[1743380123273,0.927,1814.9,1814.4,5.5114]
[1743380123481,1.570687,1814.9,1814.4,5.5114]
[1743380123677,12.591067,1814.9,1814.3,5.51158]
[1743380123884,5.51034,1814.8,1814.3,5.51158]
[1743380124201,3.0,1814.7,1814.3,5.51158]
[1743380125320,0.1,1814.9,1814.7,6.29114]
[1743380125598,0.1,1814.9,1814.8,5.624]
[1743380126369,6.43712,1814.9,1814.2,5.51188]
[1743380126569,5.5108,1814.7,1814.3,6.4046]
[1743380126766,3.0,1814.6,1813.8,31.84]
[1743380126971,5.51177,1814.3,1813.9,6.4046]
[1743380127172,5.51209,1814.2,1813.9,6.4046]
[1743380127599,5.51265,1814.1,1813.9,5.624]
[1743380127901,8.51267,1814.0,1813.9,5.624]
[1743380128197,8.51377,1813.7,1813.4,0.8287]
[1743380128397,5.51392,1813.6,1813.1,6.3441]
[1743380128571,3.0,1813.7,1813.2,5.51486]
[1743380128973,5.51407,1813.6,1813.1,0.8287]
[1743380129199,5.51432,1813.5,1813.1,2.025541]
[1743380129380,3.0,1813.5,1813.1,2.025541]
[1743380129580,5.51391,1813.6,1813.1,7.540801]
[1743380129783,0.41752038,1813.6,1813.3,5.51474]
[1743380129994,3.0,1813.5,1813.1,7.540761]
[1743380130506,3.0,1813.5,1813.1,2.025541]
[1743380131170,5.51458,1813.4,1812.8,37.34832]
[1743380131376,5.51503,1813.3,1812.9,0.8287]
[1743380131567,5.51511,1813.2,1812.9,0.8287]
[1743380131768,0.41793459,1813.3,1812.8,31.832]
[1743380131973,5.51398,1813.6,1813.0,6.34423]
[1743380132173,0.7633,1813.7,1813.2,5.51505]
[1743380132396,0.7633,1813.7,1813.0,0.8287]
[1743380132397,1.16835276,1813.7,1813.1,5.51525]
[1743380132590,1.16835276,1813.7,1813.3,5.51468]
[1743380132823,1.16835276,1813.7,1813.3,5.624]
[1743380132983,5.51401,1813.6,1813.3,6.737896]
[1743380133385,5.51424,1813.5,1813.3,5.624]
[1743380133587,5.5145,1813.4,1813.3,5.624]
[1743380133899,5.5145,1813.4,1813.0,0.8287]
[1743380133900,5.5145,1813.4,1813.0,6.4527]
[1743380134202,8.51544,1813.1,1812.8,31.832]
[1743380134375,3.0,1813.1,1812.8,37.456]
[1743380134703,3.0,1813.1,1812.9,3.7456]
[1743380135571,8.51482,1813.3,1812.9,3.7456]
[1743380135975,8.51482,1813.3,1812.8,37.456]
[1743380136176,8.51554,1813.1,1812.8,37.456]
[1743380137317,5.51585,1813.0,1812.3,5.51771]
[1743380137478,5.51651,1812.8,1812.2,5.51811]
[1743380137804,8.51677,1812.7,1812.3,6.175811]
[1743380138007,3.0,1812.4,1812.3,5.624]
[1743380138301,3.0,1812.6,1812.3,5.624]
[1743380138501,5.93242163,1812.4,1812.1,0.1]
[1743380138707,5.51775,1812.4,1812.1,0.1]
[1743380138927,5.51808,1812.3,1812.1,0.1]
[1743380139146,9.28145,1812.2,1812.1,0.1]
[1743380139302,3.7633,1812.2,1812.1,0.1]
[1743380140035,9.28145,1812.2,1812.1,0.1]
[1743380141306,3.7633,1812.2,1812.1,0.1]
[1743380141501,0.4071246,1812.4,1812.1,0.1]
[1743380141718,9.28065,1812.5,1812.1,1.307333]
[1743380141912,11.56713,1812.6,1812.1,1.307333]
[1743380141913,6.05,1812.6,1812.3,5.51784]
[1743380142133,5.80222864,1813.3,1812.3,5.51784]
[1743380142134,6.27851,1813.2,1812.5,0.8287]
[1743380142335,5.51548,1813.1,1812.6,5.51686]
[1743380142505,5.51572,1813.0,1812.5,6.34573]
[1743380142919,8.51615,1812.9,1812.5,0.8287]
[1743380143203,6.919337,1812.9,1812.4,6.4547]
[1743380143413,5.51637,1812.8,1812.4,6.4547]
[1743380144005,8.51615,1812.9,1812.4,6.4547]
[1743380144205,3.0,1812.8,1812.4,11.9722]
[1743380144418,5.51542,1813.1,1812.5,5.51699]
[1743380144620,1.18410877,1813.2,1812.7,5.51645]
[1743380144840,3.0,1813.1,1812.7,5.51645]
[1743380145138,1.18410877,1813.2,1812.7,5.51645]
[1743380145435,5.51562,1813.1,1812.6,0.551699]
[1743380145838,0.66997288,1813.1,1812.4,6.4547]
[1743380146002,11.03299,1812.8,1812.4,6.4547]
[1743380146607,5.51638,1812.8,1812.4,6.4547]
[1743380146809,8.51606,1812.9,1812.4,6.4547]
[1743380147032,14.03235,1812.9,1812.4,6.4547]
[1743380147342,5.51647,1812.8,1812.5,0.64547]
[1743380147638,5.51663,1812.7,1812.5,0.64547]
[1743380148333,5.51647,1812.8,1812.5,0.64547]
[1743380148502,5.51616,1812.9,1812.5,0.64547]
[1743380148702,3.0,1812.8,1812.5,0.64547]
[1743380149324,8.51644,1812.8,1812.5,0.64547]
[1743380149635,5.51664,1812.7,1812.5,0.64547]
[1743380149836,5.51711,1812.6,1812.2,32.6084]
[1743380150036,5.51771,1812.4,1812.1,5.726]
[1743380150705,5.51771,1812.4,1812.1,0.1]
[1743380151633,5.51725,1812.5,1812.1,0.1]
[1743380151834,5.51725,1812.5,1812.1,1.224465]
[1743380152016,3.0,1812.5,1812.1,6.742885]
[1743380152336,6.869,1813.0,1812.5,5.51711]
[1743380152511,0.42080877,1813.2,1812.9,5.51575]
[1743380152512,1.23980877,1813.2,1812.9,5.51575]
[1743380152835,5.51371,1813.7,1813.2,5.51491]
[1743380153003,6.33271,1813.7,1813.2,5.51491]
[1743380153207,6.33271,1813.7,1813.1,0.7584]
[1743380153208,5.51395,1813.6,1813.1,6.2738]
[1743380153408,5.5145,1813.4,1813.1,0.7584]
[1743380153608,0.41539699,1813.6,1813.2,5.51494]
[1743380153809,6.33273,1813.7,1813.2,5.51494]
[1743380154248,0.819,1813.7,1813.1,1.39684]
[1743380154449,3.0,1813.5,1813.1,1.39684]
[1743380154822,8.51425,1813.5,1813.1,1.39684]
[1743380155035,3.0,1813.6,1813.2,5.51498]
[1743380155219,3.0,1813.7,1813.2,6.206162]
[1743380155619,8.51373,1813.7,1813.2,0.691182]
[1743380155818,8.51373,1813.7,1813.1,0.7584]
[1743380155819,5.51406,1813.6,1813.1,0.7584]
[1743380156055,3.0,1813.4,1813.2,5.626]
[1743380157870,5.51503,1813.3,1812.8,0.8194]
[1743380158047,5.51588,1813.0,1812.8,5.625]
[1743380158234,8.51654,1812.8,1812.5,5.625]
[1743380158432,8.51654,1812.8,1812.2,12.22301036]
[1743380158633,3.0,1812.8,1812.4,5.51727]
[1743380158817,0.551588,1813.0,1812.3,5.51784]
[1743380159016,5.51678,1812.7,1812.2,11.1431]
[1743380159326,3.0,1812.7,1812.3,6.63215]
[1743380159526,3.0,1812.7,1812.3,1.11431]
[1743380159852,5.51713,1812.6,1812.3,1.11431]
[1743380160551,5.51815,1812.2,1812.1,0.1]
[1743380161049,8.51815,1812.2,1812.1,0.1]
[1743380161626,9.27365,1812.2,1812.1,0.1]
[1743380162336,24.148261,1812.2,1812.1,0.1]
[1743380162638,26.24390195,1812.2,1812.1,0.1]
[1743380162841,26.24390195,1812.2,1811.2,0.8194]
[1743380162842,3.0,1812.1,1811.2,0.8194]
[1743380163027,5.52064,1811.4,1811.2,6.4444]
[1743380163219,3.0,1811.5,1811.2,5.625]
[1743380163420,8.52034,1811.5,1811.2,5.625]
[1743380163630,3.7555,1811.7,1811.2,5.625]
[1743380163849,3.0,1811.5,1811.2,5.625]
[1743380164048,3.0,1811.6,1811.2,5.625]
[1743380164220,3.0,1811.6,1811.2,9.3825]
[1743380164420,3.0,1811.4,1811.2,9.3825]
[1743380164751,3.0,1811.4,1811.2,5.625]
[1743380167861,0.7555,1812.0,1811.2,5.625]
[1743380168152,5.51942,1811.8,1811.3,0.8194]
[1743380168359,3.0,1811.5,1811.2,5.628]
[1743380169133,5.52089,1811.3,1811.1,0.1]
[1743380169334,3.0,1811.4,1811.1,0.1]
[1743380169735,8.5208,1811.4,1811.1,0.1]
[1743380170059,8.5212,1811.2,1811.1,0.1]
[1743380172870,8.9454503,1811.2,1811.1,0.1]
[1743380173061,11.18258533,1811.2,1811.1,0.1]
[1743380173361,15.89738733,1811.2,1811.1,0.1]
[1743380173528,14.15738633,1811.2,1811.1,0.1]
[1743380173734,13.18576533,1811.2,1811.1,0.1]
[1743380174325,18.81476533,1811.2,1811.1,0.1]
[1743380174530,3.0,1810.5,1810.3,6.71539952]
[1743380175060,7.39210533,1811.2,1810.4,6.31471]
[1743380175236,5.52178,1811.1,1810.5,5.52315]
[1743380175441,3.0,1810.9,1810.5,5.52315]
[1743380175641,8.52214,1810.9,1810.4,6.31482]
[1743380176063,5.52198,1811.0,1810.3,12.98973947]
[1743380176064,5.52317,1810.6,1810.3,6.71539952]
[1743380176363,1.44663503,1811.2,1811.1,5.5215]
[1743380176530,0.7905,1811.7,1811.0,5.63]
[1743380176740,3.0,1811.6,1811.3,5.52077]
[1743380176943,3.0,1811.6,1811.2,5.52112]
[1743380176944,9.31022,1811.7,1811.1,6.31265]
[1743380177144,3.931022,1811.6,1811.1,0.7912]
[1743380177459,0.7905,1811.3,1810.8,0.7912]
[1743380177663,11.04416,1811.0,1810.6,37.506]
[1743380177892,5.52208,1811.0,1810.6,37.506]
[1743380178172,9.31144,1811.3,1810.6,37.506]
[1743380178173,5.52221,1810.9,1810.6,37.506]
[1743380178378,6.074371,1810.9,1810.6,37.506]
[1743380178871,5.5225,1810.8,1810.6,37.506]
[1743380179075,5.5225,1810.8,1810.6,5.63]
[1743380179476,6.074371,1810.9,1810.6,5.63]
[1743380180586,0.552221,1810.9,1810.6,5.63]
[1743380180744,3.7905,1811.3,1810.6,5.63]
[1743380180951,5.52211,1810.9,1810.6,5.63]
[1743380181264,3.0,1811.0,1810.6,11.15281]
[1743380181565,8.52181,1811.0,1810.6,5.63]
[1743380182151,3.0,1811.0,1810.6,11.15291]
[1743380182561,3.0,1811.0,1810.6,11.15288]
[1743380183159,3.0,1811.0,1810.6,5.63]
[1743380183474,8.52181,1811.0,1810.6,5.63]
[1743380183664,3.0,1811.0,1810.6,11.15278]
[1743380183870,3.0,1811.0,1810.6,16.6758]
[1743380184073,8.94246754,1811.2,1810.7,5.52262]
[1743380184278,0.931022,1811.6,1811.2,5.52107]
[1743380184460,11.56865,1812.1,1811.4,0.8209]
[1743380184461,6.33126,1812.0,1811.4,0.8209]
[1743380184662,11.0404,1811.6,1811.2,6.4509]
[1743380184979,8.52021,1811.6,1811.2,6.4509]
[1743380185183,5.52072,1811.4,1811.2,0.8209]
[1743380185482,5.52107,1811.3,1811.1,5.631]
[1743380185659,5.5212,1811.2,1811.1,5.631]
[1743380185983,5.5212,1811.2,1810.9,5.631]
[1743380186182,5.52107,1811.3,1810.9,5.631]
[1743380186681,5.52122,1811.2,1810.9,5.631]
[1743380186881,5.5206,1811.4,1810.9,11.15304]
[1743380187082,5.52089,1811.3,1810.9,11.15304]
[1743380187382,5.52089,1811.3,1810.9,5.631]
[1743380187586,11.04206,1811.3,1810.9,5.631]
[1743380187892,5.52089,1811.3,1810.9,5.631]
[1743380188087,11.04207,1811.3,1810.9,5.631]
[1743380188281,11.04207,1811.3,1810.8,0.8209]
[1743380188282,5.52162,1811.1,1810.8,0.8209]
[1743380188652,5.52136,1811.2,1810.8,0.8209]
[1743380188881,8.52052,1811.5,1810.9,5.52188]
[1743380189080,3.0,1811.3,1811.0,0.7867]
[1743380189253,8.5209,1811.3,1811.0,0.7867]
[1743380190885,5.52264,1810.8,1810.6,0.7867]
[1743380191183,8.52219,1810.9,1810.6,0.7867]
[1743380191785,3.0,1810.9,1810.6,0.7867]
[1743380191991,8.52213,1810.9,1810.6,0.7867]
[1743380192283,5.52272,1810.7,1810.4,0.7867]
[1743380192588,3.0,1810.7,1810.4,6.31031]
[1743380192894,6.8522,1811.4,1810.9,0.7867]
[1743380193050,0.8022,1811.4,1810.9,11.93865]
[1743380193250,5.52074,1811.4,1810.9,11.93865]
[1743380193456,5.52113,1811.3,1810.9,6.4167]
[1743380193655,5.52121,1811.2,1810.9,6.4167]
[1743380193855,1.49929873,1811.5,1810.9,6.4167]
[1743380193856,5.52151,1811.1,1810.9,6.4167]
[1743380194082,5.52181,1811.0,1810.9,5.63]